fUST/lending_fUST_20260601
["ID","MTS","AMOUNT","RATE_DAILY","PERIOD"]
[423651617,1780281044000,-500.0,0.00030188,2]
[423651615,1780281044000,-160.00323,0.00030188,2]
[423651631,1780281044000,-651.0,0.00030322,7]
[423651616,1780281044000,-500.0,0.00030188,2]
[423651618,1780281044000,-500.0,0.0003019,2]
[423651590,1780281044000,-501.19699331,0.00030188,2]
[423651586,1780281044000,-500.0,0.00030188,2]
[423651587,1780281044000,-500.0,0.00030188,2]
[423651585,1780281044000,-500.98625354,0.00030188,2]
[423651592,1780281044000,-500.0,0.00030188,2]
[423651589,1780281044000,-500.0,0.00030188,2]
[423651591,1780281044000,-500.0,0.00030188,2]
[423651596,1780281044000,-500.4141885,0.00030188,2]
[423651600,1780281044000,-501.03042147,0.00030188,2]
[423651598,1780281044000,-500.0,0.00030188,2]
[423651599,1780281044000,-492.29586722,0.00030188,2]
[423651601,1780281044000,-500.0,0.00030188,2]
[423651597,1780281044000,-500.86707936,0.00030188,2]
[423651593,1780281044000,-504.68513251,0.00030188,2]
[423651621,1780281044000,-166.0,0.00030322,7]
[423651609,1780281044000,-500.79673906,0.00030188,2]
[423651610,1780281044000,-502.6904779,0.00030188,2]
[423651620,1780281044000,-423.34879006,0.00030283,2]
[423651619,1780281044000,-502.57552319,0.0003019,2]
[423651608,1780281044000,-501.17399277,0.00030188,2]
[423651603,1780281044000,-503.82174037,0.00030188,2]
[423651611,1780281044000,-500.92658923,0.00030188,2]
[423651607,1780281044000,-500.66582568,0.00030188,2]
[423651604,1780281044000,-504.9817973,0.00030188,2]
[423651602,1780281044000,-503.49509303,0.00030188,2]
[423651605,1780281044000,-534.12210708,0.00030188,2]
[423651606,1780281044000,-507.2133568,0.00030188,2]
[423651690,1780281045000,-651.0,0.00031633,7]
[423651684,1780281045000,-444.0,0.00031459,2]
[423651686,1780281045000,-249.75993598,0.00031549,2]
[423651683,1780281045000,-514.83150863,0.00031312,2]
[423651687,1780281045000,-615.34453278,0.00031549,2]
[423651688,1780281045000,-500.0,0.00031549,2]
[423651681,1780281045000,-500.0,0.00031275,2]
[423651682,1780281045000,-500.0,0.00031275,2]
[423651680,1780281045000,-507.08164827,0.00031275,2]
[423651678,1780281045000,-1459.7505181,0.00031232,7]
[423651689,1780281045000,-180.09404339,0.00031633,7]
[423651691,1780281045000,-651.0,0.00031633,7]
[423651685,1780281045000,-185.0,0.00031459,2]
[423651693,1780281045000,-651.0,0.00031633,7]
[423651705,1780281045000,-250.0,0.00032361,24]
[423651695,1780281045000,-651.0,0.00031633,7]
[423651692,1780281045000,-651.0,0.00031633,7]
[423651697,1780281045000,-651.0,0.00031703,7]
[423651707,1780281045000,-250.0,0.00032402,24]
[423651696,1780281045000,-166.25562886,0.00031633,7]
[423651708,1780281045000,-250.0,0.00032441,24]
[423651698,1780281045000,-651.0,0.00031703,7]
[423651702,1780281045000,-500.0,0.00032097,2]
[423651701,1780281045000,-2000.0,0.00032,120]
[423651699,1780281045000,-500.0,0.00031823,2]
[423651703,1780281045000,-250.0,0.00032318,23]
[423651700,1780281045000,-838.49849454,0.00031867,2]
[423651679,1780281045000,-500.0,0.00031275,2]
[423651694,1780281045000,-651.0,0.00031633,7]
[423651677,1780281045000,-282.63745938,0.00031222,2]
[423651647,1780281045000,-510.14955205,0.00030462,2]
[423651667,1780281045000,-500.0,0.00030764,2]
[423651706,1780281045000,-500.0,0.00032371,2]
[423651650,1780281045000,-504.302236,0.00030462,2]
[423651648,1780281045000,-259.90796173,0.00030462,2]
[423651651,1780281045000,-501.24795331,0.00030462,2]
[423651659,1780281045000,-500.0,0.00030727,2]
[423651653,1780281045000,-628.73215729,0.00030462,2]
[423651654,1780281045000,-503.42982826,0.00030462,2]
[423651657,1780281045000,-513.02605013,0.00030464,2]
[423651649,1780281045000,-504.40087359,0.00030462,2]
[423651652,1780281045000,-507.46968346,0.00030462,2]
[423651655,1780281045000,-500.0,0.00030462,2]
[423651660,1780281045000,-423.7138302,0.00030727,2]
[423651656,1780281045000,-502.45879323,0.00030462,2]
[423651670,1780281045000,-500.0,0.00031001,2]
[423651661,1780281045000,-500.0,0.00030727,2]
[423651663,1780281045000,-500.0,0.00030736,2]
[423651675,1780281045000,-499.36816119,0.0003121,2]
[423651676,1780281045000,-553.4321868,0.00031222,2]
[423651662,1780281045000,-500.0,0.00030727,2]
[423651673,1780281045000,-502.40372663,0.00031029,15]
[423651674,1780281045000,-151.0,0.000312,15]
[423651664,1780281045000,-500.0,0.00030736,2]
[423651665,1780281045000,-503.40822825,0.00030736,2]
[423651668,1780281045000,-500.0,0.00031001,2]
[423651671,1780281045000,-500.0,0.00031001,2]
[423651669,1780281045000,-500.0,0.00031001,2]
[423651672,1780281045000,-563.96,0.0003101,2]
[423651666,1780281045000,-236.0533875,0.00030764,2]
[423651658,1780281045000,-500.0,0.00030727,2]
[423651704,1780281045000,-199.694269,0.00032334,60]
[423651758,1780281045000,-1980.0,0.00032876,120]
[423651711,1780281045000,-250.0,0.00032543,25]
[423651741,1780281045000,-655.51731989,0.00032781,7]
[423651742,1780281045000,-1000.0,0.00032786,30]
[423651745,1780281045000,-250.0,0.00032789,26]
[423651746,1780281045000,-250.0,0.00032804,26]
[423651748,1780281045000,-250.0,0.00032818,26]
[423651767,1780281045000,-5000.0,0.00032877,120]
[423651760,1780281045000,-624.34,0.00032877,60]
[423651759,1780281045000,-276.95,0.00032877,60]
[423651750,1780281045000,-250.0,0.00032844,26]
[423651756,1780281045000,-1016.05975701,0.00032876,120]
[423651752,1780281045000,-606.17910702,0.00032853,7]
[423651753,1780281045000,-338.61074533,0.00032853,5]
[423651751,1780281045000,-505.70148214,0.00032852,30]
[423651757,1780281045000,-1054.66139442,0.00032876,120]
[423651755,1780281045000,-250.0,0.00032866,26]
[423651754,1780281045000,-250.0,0.00032855,26]
[423651749,1780281045000,-250.0,0.00032831,26]
[423651766,1780281045000,-500.0,0.00032877,12]
[423651763,1780281045000,-227.91,0.00032877,90]
[423651762,1780281045000,-369.03,0.00032877,120]
[423651761,1780281045000,-369.03,0.00032877,90]
[423651770,1780281045000,-444.31012586,0.00033,30]
[423651771,1780281045000,-2000.0,0.00033,120]
[423651764,1780281045000,-368.91,0.00032877,26]
[423651769,1780281045000,-1053.55438769,0.00032953,120]
[423651768,1780281045000,-500.0,0.00032919,2]
[423651765,1780281045000,-500.0,0.00032877,10]
[423651744,1780281045000,-579.0,0.00032786,30]
[423651739,1780281045000,-651.0,0.00032781,7]
[423651747,1780281045000,-508.74742688,0.00032809,2]
[423651737,1780281045000,-166.0,0.00032781,7]
[423651712,1780281045000,-250.0,0.00032573,25]
[423651713,1780281045000,-250.0,0.00032601,25]
[423651714,1780281045000,-250.0,0.00032627,25]
[423651740,1780281045000,-651.0,0.00032781,7]
[423651720,1780281045000,-729.2282932,0.00032694,7]
[423651719,1780281045000,-250.0,0.00032675,25]
[423651718,1780281045000,-250.0,0.00032652,25]
[423651716,1780281045000,-7320.9266795,0.00032638,2]
[423651717,1780281045000,-500.0,0.00032645,2]
[423651710,1780281045000,-250.0,0.00032511,24]
[423651722,1780281045000,-500.0,0.00032698,2]
[423651721,1780281045000,-250.0,0.00032697,25]
[423651732,1780281045000,-27938.3574754,0.00032719,2]
[423651724,1780281045000,-500.0,0.00032699,2]
[423651715,1780281045000,-609.5659053,0.00032638,2]
[423651723,1780281045000,-500.0,0.00032699,2]
[423651725,1780281045000,-376.8496619,0.00032699,2]
[423651736,1780281045000,-250.0,0.00032773,26]
[423651743,1780281045000,-1000.0,0.00032786,30]
[423651734,1780281045000,-735.9305034,0.00032744,2]
[423651738,1780281045000,-651.0,0.00032781,7]
[423651735,1780281045000,-250.0,0.00032756,26]
[423651733,1780281045000,-250.0,0.00032737,26]
[423651709,1780281045000,-250.0,0.00032477,24]
[423651728,1780281045000,-168.92851704,0.000327,120]
[423651726,1780281045000,-165.58479403,0.000327,120]
[423651731,1780281045000,-250.0,0.00032718,25]
[423651727,1780281045000,-165.58479403,0.000327,120]
[423651729,1780281045000,-168.92851704,0.000327,120]
[423651730,1780281045000,-169.36138806,0.000327,120]
[423651773,1780281046000,-854.35690553,0.00033,30]
[423651772,1780281046000,-2150.37324286,0.00033,120]
[423651776,1780281046000,-3030.38,0.00033,25]
[423651786,1780281046000,-629355.73483321,0.000333,120]
[423651775,1780281046000,-505.26001,0.00033,120]
[423651784,1780281046000,-349.15305122,0.00033261,30]
[423651778,1780281046000,-11267.0,0.000331,25]
[423651780,1780281046000,-6437.50883351,0.00033102,2]
[423651777,1780281046000,-251.0,0.00033,90]
[423651795,1780281046000,-304.96200388,0.000213,2]
[423651797,1780281046000,-1088.21007842,0.000333,120]
[423651794,1780281046000,-1507.31,0.00019452,2]
[423651796,1780281046000,-311.72308874,0.000213,2]
[423651802,1780281046000,-3844.86168276,0.00014698,2]
[423651782,1780281046000,-500.0,0.00033193,2]
[423651798,1780281046000,-363.26021561,0.000333,120]
[423651803,1780281091000,-650.50654129,0.0001,2]
[423651807,1780281160000,-1088.21007842,0.00014551,2]
[423651808,1780281171000,-1088.21007842,0.00014551,2]
[423651809,1780281181000,-363.26021561,0.00014551,2]
[423651810,1780281192000,-363.26021561,0.00014551,2]
[423651811,1780281200000,3093.0998378,8.01e-05,2]
[423651814,1780281500000,155.0,8.01e-05,2]
[423651820,1780281852000,1000.0,0.00019178,120]
[423651821,1780281852000,1000.3048836,0.00019178,120]
[423651823,1780282019000,-5000.0,9.801e-05,2]
[423651824,1780282019000,-1342.76194043,9.9e-05,2]
[423651827,1780282038000,-590.88392333,0.0001,2]
[423651826,1780282038000,-3657.23805957,9.9e-05,2]
[423651825,1780282038000,-5000.0,9.703e-05,2]
[423651828,1780282076000,1518.15090514,0.00021198,120]
[423651869,1780282232000,-111.88159593,0.0001,2]
[423651868,1780282232000,-1200.0,9.999e-05,2]
[423651870,1780282232000,-335.09391324,0.0001,2]
[423651866,1780282232000,-666.02300211,9.801e-05,2]
[423651867,1780282232000,-5000.0,9.9e-05,2]
[423652669,1780282240000,-222.90359606,0.0001,2]
[423652671,1780282240000,-107.37798468,0.00010999,2]
[423652667,1780282240000,-1211.42004338,0.0001,2]
[423652759,1780282241000,-500.0,0.00014988,2]
[423652734,1780282241000,-500.0,0.00014988,2]
[423652732,1780282241000,-500.0,0.00014988,2]
[423652744,1780282241000,-500.0,0.00014988,2]
[423652731,1780282241000,-500.0,0.00014988,2]
[423652746,1780282241000,-500.0,0.00014988,2]
[423652750,1780282241000,-500.0,0.00014988,2]
[423652748,1780282241000,-500.0,0.00014988,2]
[423652752,1780282241000,-500.0,0.00014988,2]
[423652754,1780282241000,-500.0,0.00014988,2]
[423652763,1780282241000,-500.0,0.00014988,2]
[423652756,1780282241000,-500.0,0.00014988,2]
[423652757,1780282241000,-500.0,0.00014988,2]
[423652766,1780282241000,-250.42435466,0.00014988,2]
[423652779,1780282241000,-500.0,0.00014988,2]
[423652761,1780282241000,-500.0,0.00014988,2]
[423652786,1780282241000,-500.0,0.00014988,2]
[423652780,1780282241000,-500.0,0.00014988,2]
[423652794,1780282241000,-500.0,0.00014989,2]
[423652790,1780282241000,-509.99310344,0.00014989,2]
[423652784,1780282241000,-500.0,0.00014988,2]
[423652798,1780282241000,-501.35361074,0.00014989,2]
[423652767,1780282241000,-500.0,0.00014988,2]
[423652792,1780282241000,-500.99219881,0.00014989,2]
[423652737,1780282241000,-500.0,0.00014988,2]
[423652777,1780282241000,-500.0,0.00014988,2]
[423652773,1780282241000,-500.0,0.00014988,2]
[423652775,1780282241000,-500.0,0.00014988,2]
[423652771,1780282241000,-500.0,0.00014988,2]
[423652769,1780282241000,-500.0,0.00014988,2]
[423652796,1780282241000,-500.0,0.00014989,2]
[423652736,1780282241000,-500.0,0.00014988,2]
[423652723,1780282241000,-500.0,0.00014988,2]
[423652743,1780282241000,-500.0,0.00014988,2]
[423652673,1780282241000,-279.62201532,0.00010999,2]
[423652676,1780282241000,-2115.5343687,0.0001359,2]
[423652686,1780282241000,-500.0,0.00014988,2]
[423652688,1780282241000,-447.22819128,0.00014988,2]
[423652675,1780282241000,-300.0,0.00013589,2]
[423652693,1780282241000,-500.0,0.00014988,2]
[423652689,1780282241000,-500.0,0.00014988,2]
[423652694,1780282241000,-500.0,0.00014988,2]
[423652691,1780282241000,-500.0,0.00014988,2]
[423652678,1780282241000,-1000.0,0.00013819,2]
[423652697,1780282241000,-471.74689963,0.00014988,2]
[423652680,1780282241000,-167.82587445,0.00014889,2]
[423652696,1780282241000,-500.0,0.00014988,2]
[423652683,1780282241000,-500.0,0.00014988,2]
[423652699,1780282241000,-500.0,0.00014988,2]
[423652701,1780282241000,-500.0,0.00014988,2]
[423652703,1780282241000,-500.0,0.00014988,2]
[423652739,1780282241000,-500.0,0.00014988,2]
[423652729,1780282241000,-500.0,0.00014988,2]
[423652727,1780282241000,-244.34088275,0.00014988,2]
[423652721,1780282241000,-500.0,0.00014988,2]
[423652725,1780282241000,-500.0,0.00014988,2]
[423652720,1780282241000,-500.0,0.00014988,2]
[423652741,1780282241000,-500.0,0.00014988,2]
[423652707,1780282241000,-500.0,0.00014988,2]
[423652709,1780282241000,-500.0,0.00014988,2]
[423652716,1780282241000,-500.0,0.00014988,2]
[423652710,1780282241000,-500.0,0.00014988,2]
[423652718,1780282241000,-500.0,0.00014988,2]
[423652705,1780282241000,-500.0,0.00014988,2]
[423652712,1780282241000,-500.0,0.00014988,2]
[423652714,1780282241000,-500.0,0.00014988,2]
[423652800,1780282241000,-500.0,0.00014989,2]
[423652810,1780282241000,-507.67414303,0.00014989,2]
[423652802,1780282241000,-500.0,0.00014989,2]
[423652874,1780282241000,-500.0,0.00014991,2]
[423652876,1780282241000,-500.0,0.00014991,2]
[423652878,1780282241000,-500.0,0.00014991,2]
[423652880,1780282241000,-500.0,0.00014991,2]
[423652882,1780282241000,-500.0,0.00014991,2]
[423652884,1780282241000,-500.0,0.00014991,2]
[423652894,1780282241000,-500.0,0.00014991,2]
[423652888,1780282241000,-500.0,0.00014991,2]
[423652886,1780282241000,-500.0,0.00014991,2]
[423652896,1780282241000,-500.0,0.00014991,2]
[423652898,1780282241000,-500.0,0.00014991,2]
[423652892,1780282241000,-500.0,0.00014991,2]
[423652890,1780282241000,-500.0,0.00014991,2]
[423652900,1780282241000,-500.0,0.00014991,2]
[423652860,1780282241000,-500.0,0.00014991,2]
[423652902,1780282241000,-500.0,0.00014991,2]
[423652905,1780282241000,-500.0,0.00014991,2]
[423652907,1780282241000,-500.0,0.00014991,2]
[423652909,1780282241000,-500.0,0.00014991,2]
[423652922,1780282241000,-500.0,0.00014991,2]
[423652918,1780282241000,-372.75446004,0.00014991,2]
[423652924,1780282241000,-500.0,0.00014991,2]
[423652929,1780282241000,-500.25615859,0.00014991,2]
[423652910,1780282241000,-500.0,0.00014991,2]
[423652912,1780282241000,-500.0,0.00014991,2]
[423652914,1780282241000,-500.0,0.00014991,2]
[423652920,1780282241000,-500.0,0.00014991,2]
[423652916,1780282241000,-500.0,0.00014991,2]
[423652926,1780282241000,-500.31037683,0.00014991,2]
[423652788,1780282241000,-500.0,0.00014988,2]
[423652903,1780282241000,-500.0,0.00014991,2]
[423652862,1780282241000,-500.0,0.00014991,2]
[423652927,1780282241000,-500.0,0.00014991,2]
[423652866,1780282241000,-500.45432691,0.00014991,2]
[423652804,1780282241000,-500.0,0.00014989,2]
[423652808,1780282241000,-500.0,0.00014989,2]
[423652816,1780282241000,-503.8103195,0.00014989,2]
[423652806,1780282241000,-502.55673285,0.00014989,2]
[423652812,1780282241000,-500.0,0.00014989,2]
[423652814,1780282241000,-500.0,0.00014989,2]
[423652822,1780282241000,-500.0,0.00014989,2]
[423652820,1780282241000,-512.25928824,0.00014989,2]
[423652864,1780282241000,-500.0,0.00014991,2]
[423652823,1780282241000,-500.0,0.00014989,2]
[423652826,1780282241000,-583.14391209,0.00014989,2]
[423652830,1780282241000,-503.71046216,0.0001499,2]
[423652828,1780282241000,-500.0,0.0001499,2]
[423652833,1780282241000,-500.0,0.0001499,2]
[423652845,1780282241000,-500.0,0.00014991,2]
[423652818,1780282241000,-594.3147366,0.00014989,2]
[423652831,1780282241000,-500.0,0.0001499,2]
[423652872,1780282241000,-500.0,0.00014991,2]
[423652847,1780282241000,-500.0,0.00014991,2]
[423652870,1780282241000,-500.0,0.00014991,2]
[423652859,1780282241000,-500.0,0.00014991,2]
[423652868,1780282241000,-500.0,0.00014991,2]
[423652855,1780282241000,-501.26006918,0.00014991,2]
[423652853,1780282241000,-500.0,0.00014991,2]
[423652857,1780282241000,-500.0,0.00014991,2]
[423652841,1780282241000,-502.42875987,0.0001499,2]
[423652835,1780282241000,-500.0,0.0001499,2]
[423652843,1780282241000,-500.0,0.00014991,2]
[423652849,1780282241000,-500.0,0.00014991,2]
[423652839,1780282241000,-500.0,0.0001499,2]
[423652837,1780282241000,-500.0,0.0001499,2]
[423652851,1780282241000,-500.0,0.00014991,2]
[423652988,1780282242000,-501.16806955,0.00014991,2]
[423653020,1780282242000,-500.83576498,0.00014991,2]
[423653024,1780282242000,-500.33496402,0.00014991,2]
[423653008,1780282242000,-280.08932993,0.00014991,2]
[423653006,1780282242000,-500.45266874,0.00014991,2]
[423652994,1780282242000,-500.0,0.00014991,2]
[423653000,1780282242000,-500.0,0.00014991,2]
[423652987,1780282242000,-453.02869858,0.00014991,2]
[423652992,1780282242000,-461.56969621,0.00014991,2]
[423653004,1780282242000,-500.0,0.00014991,2]
[423652985,1780282242000,-500.94011054,0.00014991,2]
[423653002,1780282242000,-500.68043456,0.00014991,2]
[423652990,1780282242000,-501.86530358,0.00014991,2]
[423653028,1780282242000,-500.0,0.00014991,2]
[423653038,1780282242000,-500.0,0.00014991,2]
[423653026,1780282242000,-500.0,0.00014991,2]
[423653012,1780282242000,-500.76761853,0.00014991,2]
[423653010,1780282242000,-500.32464742,0.00014991,2]
[423653014,1780282242000,-500.0,0.00014991,2]
[423653018,1780282242000,-501.49104781,0.00014991,2]
[423653030,1780282242000,-501.45498497,0.00014991,2]
[423653032,1780282242000,-500.0,0.00014991,2]
[423653034,1780282242000,-500.0,0.00014991,2]
[423653048,1780282242000,-500.0,0.00014992,2]
[423653050,1780282242000,-500.0,0.00014992,2]
[423653052,1780282242000,-500.0,0.00014992,2]
[423653036,1780282242000,-500.0,0.00014991,2]
[423653054,1780282242000,-500.0,0.00014992,2]
[423652996,1780282242000,-500.0,0.00014991,2]
[423653016,1780282242000,-500.0,0.00014991,2]
[423652998,1780282242000,-500.71448927,0.00014991,2]
[423652956,1780282242000,-500.57966111,0.00014991,2]
[423652984,1780282242000,-501.50865845,0.00014991,2]
[423653041,1780282242000,-500.0,0.00014991,2]
[423652931,1780282242000,-500.0,0.00014991,2]
[423652935,1780282242000,-500.0,0.00014991,2]
[423652933,1780282242000,-500.0,0.00014991,2]
[423652937,1780282242000,-500.0,0.00014991,2]
[423652940,1780282242000,-500.0,0.00014991,2]
[423652944,1780282242000,-500.0,0.00014991,2]
[423652942,1780282242000,-500.6383455,0.00014991,2]
[423652948,1780282242000,-500.0,0.00014991,2]
[423652939,1780282242000,-500.0,0.00014991,2]
[423652958,1780282242000,-500.0,0.00014991,2]
[423652954,1780282242000,-500.0,0.00014991,2]
[423652950,1780282242000,-500.38397917,0.00014991,2]
[423652946,1780282242000,-500.0,0.00014991,2]
[423652986,1780282242000,-495.880591,0.00014991,2]
[423652960,1780282242000,-500.0,0.00014991,2]
[423652974,1780282242000,-500.0,0.00014991,2]
[423652976,1780282242000,-500.57593187,0.00014991,2]
[423652982,1780282242000,-505.05337629,0.00014991,2]
[423652978,1780282242000,-500.0,0.00014991,2]
[423652980,1780282242000,-500.40299368,0.00014991,2]
[423652968,1780282242000,-500.81471204,0.00014991,2]
[423652962,1780282242000,-500.0,0.00014991,2]
[423652979,1780282242000,-501.76000247,0.00014991,2]
[423652981,1780282242000,-501.41751623,0.00014991,2]
[423652983,1780282242000,-500.0,0.00014991,2]
[423652964,1780282242000,-500.0,0.00014991,2]
[423652966,1780282242000,-500.0,0.00014991,2]
[423652970,1780282242000,-513.51566638,0.00014991,2]
[423652972,1780282242000,-508.821359,0.00014991,2]
[423652952,1780282242000,-500.41135218,0.00014991,2]
[423653043,1780282242000,-500.0,0.00014991,2]
[423653058,1780282242000,-500.0,0.00014992,2]
[423653153,1780282242000,-285.52351661,0.00014992,2]
[423653128,1780282242000,-501.75621976,0.00014992,2]
[423653130,1780282242000,-500.0,0.00014992,2]
[423653132,1780282242000,-500.0,0.00014992,2]
[423653123,1780282242000,-500.0,0.00014992,2]
[423653139,1780282242000,-500.0,0.00014992,2]
[423653134,1780282242000,-500.0,0.00014992,2]
[423653141,1780282242000,-500.0,0.00014992,2]
[423653143,1780282242000,-500.0,0.00014992,2]
[423653145,1780282242000,-500.0,0.00014992,2]
[423653147,1780282242000,-500.0,0.00014992,2]
[423653150,1780282242000,-505.1798444,0.00014992,2]
[423653151,1780282242000,-500.0,0.00014992,2]
[423653155,1780282242000,-504.47838404,0.00014992,2]
[423653163,1780282242000,-500.0,0.00014992,2]
[423653126,1780282242000,-500.0,0.00014992,2]
[423653161,1780282242000,-500.0,0.00014992,2]
[423653165,1780282242000,-500.0,0.00014992,2]
[423653157,1780282242000,-500.0,0.00014992,2]
[423653159,1780282242000,-501.63427487,0.00014992,2]
[423653173,1780282242000,-502.85218046,0.00014992,2]
[423653169,1780282242000,-500.0,0.00014992,2]
[423653171,1780282242000,-500.0,0.00014992,2]
[423653178,1780282242000,-500.0,0.00014992,2]
[423653180,1780282242000,-500.0,0.00014992,2]
[423653186,1780282242000,-500.0,0.00014993,2]
[423653182,1780282242000,-500.0,0.00014993,2]
[423653184,1780282242000,-500.0,0.00014993,2]
[423653188,1780282242000,-500.0,0.00014993,2]
[423653044,1780282242000,-500.0,0.00014991,2]
[423653190,1780282242000,-411.24572629,0.00014993,2]
[423653167,1780282242000,-500.95959113,0.00014992,2]
[423653124,1780282242000,-500.0,0.00014992,2]
[423653137,1780282242000,-500.0,0.00014992,2]
[423653121,1780282242000,-1469.6721,0.00014992,2]
[423653082,1780282242000,-500.0,0.00014992,2]
[423653078,1780282242000,-500.0,0.00014992,2]
[423653086,1780282242000,-491.94894127,0.00014992,2]
[423653117,1780282242000,-503.76432237,0.00014992,2]
[423653074,1780282242000,-500.0,0.00014992,2]
[423653072,1780282242000,-500.0,0.00014992,2]
[423653080,1780282242000,-341.5772482,0.00014992,2]
[423653068,1780282242000,-500.0,0.00014992,2]
[423653066,1780282242000,-500.0,0.00014992,2]
[423653064,1780282242000,-500.0,0.00014992,2]
[423653062,1780282242000,-500.0,0.00014992,2]
[423653056,1780282242000,-365.94356066,0.00014992,2]
[423653046,1780282242000,-303.37166418,0.00014992,2]
[423653060,1780282242000,-500.0,0.00014992,2]
[423653070,1780282242000,-500.0,0.00014992,2]
[423653088,1780282242000,-500.0,0.00014992,2]
[423653076,1780282242000,-500.0,0.00014992,2]
[423653090,1780282242000,-500.0,0.00014992,2]
[423653119,1780282242000,-500.0,0.00014992,2]
[423653084,1780282242000,-500.0,0.00014992,2]
[423653112,1780282242000,-500.0,0.00014992,2]
[423653107,1780282242000,-500.0,0.00014992,2]
[423653105,1780282242000,-500.0,0.00014992,2]
[423653109,1780282242000,-500.0,0.00014992,2]
[423653111,1780282242000,-500.0,0.00014992,2]
[423653115,1780282242000,-500.96278195,0.00014992,2]
[423653099,1780282242000,-500.0,0.00014992,2]
[423653100,1780282242000,-500.0,0.00014992,2]
[423653097,1780282242000,-462.00380418,0.00014992,2]
[423653094,1780282242000,-502.54932223,0.00014992,2]
[423653092,1780282242000,-500.64168044,0.00014992,2]
[423653102,1780282242000,-500.0,0.00014992,2]
[423653286,1780282243000,-500.27443656,0.00014996,2]
[423653282,1780282243000,-500.0,0.00014996,2]
[423653280,1780282243000,-500.0,0.00014996,2]
[423653284,1780282243000,-500.0,0.00014996,2]
[423653275,1780282243000,-500.0,0.00014996,2]
[423653278,1780282243000,-500.0,0.00014996,2]
[423653266,1780282243000,-500.0,0.00014996,2]
[423653268,1780282243000,-500.0,0.00014996,2]
[423653270,1780282243000,-500.0,0.00014996,2]
[423653263,1780282243000,-500.0,0.00014996,2]
[423653264,1780282243000,-500.0,0.00014996,2]
[423653259,1780282243000,-500.0,0.00014996,2]
[423653288,1780282243000,-500.0,0.00014996,2]
[423653272,1780282243000,-500.0,0.00014996,2]
[423653299,1780282243000,-500.0,0.00014996,2]
[423653335,1780282243000,-500.0,0.00014996,2]
[423653289,1780282243000,-500.40396065,0.00014996,2]
[423653261,1780282243000,-500.35955197,0.00014996,2]
[423653320,1780282243000,-500.0,0.00014996,2]
[423653333,1780282243000,-500.0,0.00014996,2]
[423653331,1780282243000,-500.0,0.00014996,2]
[423653318,1780282243000,-500.0,0.00014996,2]
[423653316,1780282243000,-500.0,0.00014996,2]
[423653302,1780282243000,-500.2399001,0.00014996,2]
[423653313,1780282243000,-542.33787801,0.00014996,2]
[423653307,1780282243000,-500.0,0.00014996,2]
[423653310,1780282243000,-500.0,0.00014996,2]
[423653293,1780282243000,-500.0,0.00014996,2]
[423653297,1780282243000,-500.0,0.00014996,2]
[423653291,1780282243000,-500.0,0.00014996,2]
[423653305,1780282243000,-500.0,0.00014996,2]
[423653295,1780282243000,-500.0,0.00014996,2]
[423653257,1780282243000,-500.0,0.00014996,2]
[423653192,1780282243000,-500.0,0.00014993,2]
[423653252,1780282243000,-500.0,0.00014995,2]
[423653194,1780282243000,-500.0,0.00014993,2]